[Event "XVI Memorial Lezcano Montalvo 2024"]
[Site "Gran Canaria"]
[Date "2024.03.23"]
[Round "1.1"]
[White "Dvirnyy, Danyyil"]
[Black "Rivero Tacoronte, Gabriel"]
[Result "1-0"]
[ECO "E02"]
[WhiteElo "2482"]
[BlackElo "1831"]
[Annotator "RC"]
[PlyCount "45"]
[EventDate "2024.03.23"]
[EventType "swiss"]
[EventCountry "ESP"]
[SourceTitle "playchess.com"]
[Source "ChessBase"]
[SourceQuality "1"]
[TimeControl "5400+30"]

1. d4 {[%emt 0:00:03]} d5 {[%emt 0:00:04]} 2. Nf3 {[%emt 0:01:16]} Nf6 {[%emt 0:00:26]} 3. c4 {[%emt 0:00:20]} c6 {[%emt 0:00:05]} 4. Nc3 {[%emt 0:01:16]} e6 {[%emt 0:00:41]} 5. Qd3 {[%emt 0:03:33]} Nbd7 {[%emt 0:12:49]} 6. g3 {[%emt 0:00:15]} Be7 {[%emt 0:02:51]} 7. Bg2 {[%emt 0:00:07]} O-O {[%emt 0:00:05]} 8. O-O {[%emt 0:00:07]} dxc4 {[%emt 0:05:45]} 9. Qxc4 {[%emt 0:00:34]} c5 {[%emt 0:03:24]} 10. Rd1 {[%emt 0:01:14]} Nb6 {[%emt 0:06:24]} 11. Qb3 {[%emt 0:00:10]} c4 {[%emt 0:00:37]} 12. Qc2 {[%emt 0:00:06]} Bd7 {[%emt 0:02:17]} 13. Ne5 {[%emt 0:00:48]} Nfd5 {[%emt 0:07:11]} 14. Nxd7 {[%emt 0:00:49]} Qxd7 {[%emt 0:01:56]} 15. Bd2 {[%emt 0:01:17]} Rac8 {[%emt 0:02:42]} 16. h4 {[%emt 0:01:23]} Rfd8 {[%emt 0:02:01]} 17. a3 {[%emt 0:01:40]} Bf6 {[%emt 0:03:49]} 18. Be4 {[%emt 0:15:39]} h6 {[%emt 0:02:47]} 19. Qc1 {[%emt 0:02:52]} Bxd4 {[%emt 0:13:12]} 20. Bc2 {[%emt 0:08:48]} Bxc3 {[%emt 0:02:59]} 21. bxc3 {[%emt 0:00:06]} Na4 {[%emt 0:01:31]} 22. e4 {[%emt 0:01:59]} Ne7 {[%emt 0:08:52]} 23. Bg5 {[%emt 0:00:25]} 1-0

[Event "XVI Memorial Lezcano Montalvo 2024"]
[Site "Gran Canaria"]
[Date "2024.03.23"]
[Round "1.2"]
[White "Rivero Reyes, Alejandro"]
[Black "Kovchan, Alexander"]
[Result "0-1"]
[ECO "D73"]
[WhiteElo "1799"]
[BlackElo "2477"]
[Annotator "TA"]
[PlyCount "38"]
[EventDate "2024.03.23"]
[EventType "swiss"]
[EventCountry "ESP"]
[SourceTitle "playchess.com"]
[Source "ChessBase"]
[SourceQuality "1"]
[TimeControl "5400+30"]

{[%evp 10,38,27,4,12,0,0,-11,-5,-65,-52,-89,-93,-154,-147,-147,-164,-166,-131,-359,-358,-448,-438,-410,-380,-616,-583,-707,-699,-799,-787]} 1. Nf3 {[%emt 0:00:14]} Nf6 {[%emt 0:00:14]} 2. g3 {[%emt 0:00:24]} d5 {[%emt 0:00:35][%cal Bd7d5,Bd5c4,Bc4c3][%mdl 32]} 3. Bg2 {[%emt 0:00:15]} g6 {[%emt 0:00:15]} 4. O-O {[%emt 0:02:02]} Bg7 {[%emt 0:00:14]} 5. d4 {[%emt 0:00:33]} c6 {[%emt 0:00:08]} 6. c4 {[%emt 0:02:23]} dxc4 {[%emt 0:00:12]} 7. Qc2 {[%emt 0:03:35]} b5 {[%emt 0:02:46]} 8. Nbd2 {[%emt 0:04:46][%cal Bb1d2,Bd2e4,Be4g5][%mdl 32]} O-O {[%emt 0:13:03] Die Stellung ist ausgeglichen.} 9. a4 {[%emt 0:02:25]} (9. b3 $11) 9... Nd5 $15 {[%emt 0:07:23]} 10. axb5 {[%emt 0:12:26]} cxb5 {[%emt 0:00:09]} 11. b3 {[%emt 0:05:07] [#]} (11. Nb1 $142) 11... c3 $1 $17 {[%emt 0:01:55]} 12. Ne4 {[%emt 0:00:59]} Bf5 {[%emt 0:06:37] Und jetzt ...Nc6 wäre schön.} 13. Nh4 {[%emt 0:12:54] Schwarz muss nun Nxf5 beachten.} Nc6 {[%emt 0:00:53]} (13... Bxd4 14. Nxf5 gxf5 15. Nxc3 Bxc3 16. Bxd5 Qxd5 17. Qxc3 $14) 14. Nxf5 {[%emt 0:03:17] Davon erholt Weiß sich nicht mehr.} (14. e3 $17 {war die einzige Chance.}) 14... gxf5 $19 {[%emt 0:00:03]} (14... Ncb4 15. Nxe7+ Qxe7 16. Qd1 $17) 15. Ng5 {[%emt 0:24:03]} ({Ein No Go ist} 15. Nxc3 Nxd4 (15... Bxd4 $2 16. Nxd5 Bxa1 17. Qxc6 $18) 16. Qb2 Nxc3) 15... Nxd4 {[%emt 0:00:57]} 16. Qd3 {[%emt 0:02:39]} e6 {[%emt 0:06:58]} (16... Nxb3 $2 {geht unter.} 17. Bxd5 e6 (17... Nxa1 18. Qxf5 Re8 19. Bxf7+ Kh8 20. Qxh7#) 18. Bxb3 $18) 17. Kh1 $2 {[%emt 0:02:33] [#]} (17. Bxd5 Qxd5 18. Bf4) 17... Nxb3 {[%emt 0:04:18] Schwarz steht klar auf Gewinn.} 18. Rb1 {[%emt 0:03:09]} Nxc1 {[%emt 0:00:30]} 19. Rfxc1 {[%emt 0:00:36]} Qxg5 {[%emt 0:52:50] Gewichteter Fehlerwert: Weiß=0.76/Schwarz=0.05 (makellos) .  Verlustzug:     	Weiß=1     	---        Fehler:       	Weiß=3     	---        Ungenau:       	Weiß=1     	---        OK:         	Weiß=4     	Schwarz=6     Stark:        	---       	Schwarz=1} 0-1

[Event "XVI Memorial Lezcano Montalvo 2024"]
[Site "Gran Canaria"]
[Date "2024.03.23"]
[Round "1.3"]
[White "Kurajica, Bojan"]
[Black "Basualdo De Ornelas, Jorge"]
[Result "1-0"]
[ECO "E02"]
[WhiteElo "2444"]
[BlackElo "1792"]
[Annotator "TA"]
[PlyCount "71"]
[EventDate "2024.03.23"]
[EventType "swiss"]
[EventCountry "ESP"]
[SourceTitle "playchess.com"]
[Source "ChessBase"]
[SourceQuality "1"]
[TimeControl "5400+30"]

{[%evp 13,70,41,41,41,38,35,39,40,75,68,80,58,65,27,107,106,116,113,114,117,114,113,112,114,245,190,418,417,433,439,464,470,531,549,535,545,667,636,706,615,576,559,611,585,576,572,1162,1110,2585,29968,29969,3578,29996,29997,29997,29998,29998,29999,29999]} 1. Nf3 {[%emt 0:00:02]} d5 {[%emt 0:00:15]} 2. d4 {[%emt 0:00:04]} Nf6 {[%emt 0:00:17]} 3. c4 {[%emt 0:00:05]} e6 {[%emt 0:00:05]} 4. g3 {[%emt 0:00:09]} dxc4 {[%emt 0:00:14]} 5. Qa4+ {[%emt 0:00:12]} Bd7 {[%emt 0:01:10]} 6. Qxc4 {[%emt 0:00:08]} Be7 {[%emt 0:03:40]} 7. Bg2 {[%emt 0:00:35]} Bc6 {[%emt 0:00:17]} 8. Nc3 {[%emt 0:03:47]} O-O {[%emt 0:00:18]} 9. O-O {[%emt 0:00:25]} a6 {[%emt 0:02:35]} 10. Qd3 {[%emt 0:05:37] White is slightly better.} Bxf3 {[%emt 0:10:35]} 11. Bxf3 {[%emt 0:00:22]} Nc6 {[%emt 0:00:06]} 12. Bxc6 {[%emt 0:04:12]} bxc6 {[%emt 0:00:03]} 13. Qc4 {[%emt 0:00:24][%cal Oc1g5]} Rb8 {[%emt 0:01:01]} (13... Qd7 $11) 14. Rd1 $1 $16 {[%emt 0:02:47]} Rb4 {[%emt 0:02:25]} 15. Qxc6 {[%emt 0:08:48]} Rxd4 {[%emt 0:00:05]} 16. Bf4 {[%emt 0:00:45][%cal Bc1f4,Bf4e5,Be5d4][%mdl 32]} Rxd1+ {[%emt 0:28:54]} 17. Rxd1 {[%emt 0:00:08]} Qb8 {[%emt 0:00:18]} 18. Qxc7 {[%emt 0:00:41] White has more active pieces.} ({Don't play} 18. Qxa6 $6 Qxb2 19. Qc4 c5 $11) 18... Qe8 {[%emt 0:21:26] Loses the game.} (18... Qxc7 $16 {keeps fighting.} 19. Bxc7 Rc8) 19. Qa7 $18 {[%emt 0:03:33]} e5 $2 {[%emt 0:04:38]} (19... Bb4 20. Bd6 (20. Qxa6 Bxc3 21. bxc3 Nd5 $18) 20... Bxd6) 20. Bxe5 {[%emt 0:02:38]} Ng4 {[%emt 0:00:02]} 21. Bd4 {[%emt 0:04:28]} f5 {[%emt 0:08:02]} 22. Nd5 {[%emt 0:04:36][%cal Bc3d5,Bd5e3,Be3g2][%mdl 32]} Rf7 {[%emt 0:00:28]} 23. Qxa6 {[%emt 0:00:49] Qe6 would now be deadly.} Bg5 {[%emt 0:03:14]} 24. h3 {[%emt 0:06:43]} Nh6 {[%emt 0:08:36]} 25. Qc4 {[%emt 0:05:07]} f4 {[%emt 0:02:12]} 26. gxf4 {[%emt 0:01:23]} Bh4 {[%emt 0:00:31]} 27. Ne3 {[%emt 0:00:51]} Kh8 {[%emt 0:01:49]} 28. Ng2 {[%emt 0:01:10]} Bd8 {[%emt 0:00:28]} 29. Bc3 {[%emt 0:04:04]} Bb6 {[%emt 0:00:35]} 30. Rd6 {[%emt 0:00:44][%csl LRb6,LRh6]} Bxf2+ {[%emt 0:00:38]} 31. Kxf2 {[%emt 0:00:19]} Nf5 {[%emt 0:00:22] [#]} 32. Qxf7 $3 {[%emt 0:01:32]} Qc8 {[%emt 0:00:37] [#]} (32... Qxf7 33. Rd8+) 33. Qxf5 $3 {[%emt 0:00:24][%cal Rf5c8] White mates.} Qc5+ {[%emt 0:00:31]} (33... Qb8 34. Qf7) 34. Qxc5 {[%emt 0:00:13][%cal Rd6d8]} h5 {[%emt 0:01:03]} 35. Qxh5+ {[%emt 0:00:17]} Kg8 {[%emt 0:00:00]} 36. Rd8# {[%emt 0:00:09] Weighted Error Value: White=0.11 (very precise) /Black=0.40.  Mistake:       	---       	Black=3      Inaccurate:     	White=1     	Black=3      OK:         	White=9     	Black=2      Best:        	White=2     	---        Strong:       	White=1     	---} 1-0

[Event "XVI Memorial Lezcano Montalvo 2024"]
[Site "Gran Canaria"]
[Date "2024.03.23"]
[Round "1.4"]
[White "Gonzalez Perdomo, Sergio"]
[Black "Omelja, Artem"]
[Result "0-1"]
[ECO "C18"]
[WhiteElo "1792"]
[BlackElo "2438"]
[Annotator "TA"]
[PlyCount "60"]
[EventDate "2024.03.23"]
[EventType "swiss"]
[EventCountry "ESP"]
[SourceTitle "playchess.com"]
[Source "ChessBase"]
[SourceQuality "1"]
[TimeControl "5400+30"]

{[%evp 13,60,13,9,4,12,-12,0,-28,0,0,0,0,0,-64,-58,-110,-99,-101,-103,-136,-142,-181,-181,-182,-185,-231,-216,-270,-264,-362,-358,-361,-372,-359,-354,-472,-447,-678,-645,-666,-648,-1423,-1376,-29986,-29987,-29987,-29988,-29988,-29988]} 1. e4 {[%emt 0:00:03]} e6 {[%emt 0:00:18]} 2. d4 {[%emt 0:00:06]} d5 {[%emt 0:00:06]} 3. Nc3 {[%emt 0:00:11]} Bb4 {[%emt 0:00:27]} 4. e5 {[%emt 0:00:25]} c5 {[%emt 0:00:50]} 5. a3 {[%emt 0:00:06]} Bxc3+ {[%emt 0:00:22]} 6. bxc3 {[%emt 0:00:06]} Qa5 {[%emt 0:01:08]} 7. Bd2 {[%emt 0:01:48]} Qa4 {[%emt 0:00:11]} 8. Rb1 {[%emt 0:07:23]} c4 {[%emt 0:01:03]} 9. f4 {[%emt 0:03:10]} Nc6 {[%emt 0:00:44]} 10. Nf3 {[%emt 0:01:13] The position is equal.} b6 {[%emt 0:00:29]} 11. Be2 {[%emt 0:01:48]} Bd7 {[%emt 0:01:18]} 12. O-O {[%emt 0:00:40]} Nge7 {[%emt 0:00:26]} 13. g4 {[%emt 0:08:51]} ({Better is} 13. Qc1 $11) 13... h5 $15 {[%emt 0:07:27]} 14. h3 {[%emt 0:18:45]} (14. gxh5 $15 Rxh5 15. Ng5) 14... hxg4 $17 {[%emt 0:00:14]} 15. hxg4 {[%emt 0:00:02]} O-O-O {[%emt 0:00:16][%cal Of7f6]} 16. Kg2 {[%emt 0:00:18]} f6 {[%emt 0:00:41] Black is more active.} 17. Be3 {[%emt 0:13:11]} Be8 {[%emt 0:00:51]} 18. Qd2 {[%emt 0:03:01]} Bg6 {[%emt 0:01:07]} 19. Bd1 {[%emt 0:07:05]} (19. Rbe1 $142) 19... Be4 {[%emt 0:00:18]} (19... Qxa3 20. Be2) 20. Kg3 {[%emt 0:00:44]} Rh7 {[%emt 0:00:29]} (20... Qxa3 21. Be2 $19) 21. Rf2 {[%emt 0:02:38]} Rdh8 {[%emt 0:00:59]} (21... Qxa3 22. Rh2 $19) 22. Rh2 {[%emt 0:01:51] Dodges Rh3+} Rxh2 {[%emt 0:00:15]} (22... Qxa3 23. Rxh7 Rxh7 24. Qc1 Qxc1 (24... Qxc3 $2 25. Bd2 $18) 25. Rxc1 $19) 23. Nxh2 {[%emt 0:00:05]} f5 {[%emt 0:00:54]} (23... Qxa3 24. Nf3 $19) 24. Bf3 {[%emt 0:07:26]} fxg4 {[%emt 0:01:50]} ({Resist} 24... Qxa3 25. Be2 $19) (24... Qxc2 25. Qxc2 Bxc2 26. Re1 $19) (24... Bxc2 25. Rc1 Bd3 26. g5 $17) 25. Bxe4 {[%emt 0:00:38]} (25. Bxg4 $142 Nf5+ (25... Qxa3 $2 26. Bxe6+ Kc7 27. Nf3 $19) 26. Bxf5 Bxf5 27. Rc1) 25... dxe4 $19 {[%emt 0:00:07]} 26. Nxg4 {[%emt 0:00:49]} Nd5 {[%emt 0:01:04][%cal Oc6e7] [#] ...Nce7! is the strong threat.} 27. Nf2 {[%emt 0:02:56]} Nce7 {[%emt 0:00:10] ( -> ...Nf5+)} 28. Re1 {[%emt 0:01:23]} Nf5+ {[%emt 0:00:14] A dynamic duo of knights. Black mates.} 29. Kg2 {[%emt 0:00:26]} Qe8 {[%emt 0:01:54]} (29... Ndxe3+ 30. Rxe3 Qe8 (30... Nxe3+ $2 31. Qxe3 Qxc2 32. a4 $19) (30... Qxa3 $2 31. Rxe4 Qa5 32. d5 $19) 31. Nh3 Qg6+ (31... Nxe3+ $2 32. Qxe3 Qh5 33. Qg3 $19) 32. Kh2 $19) 30. Nxe4 {[%emt 0:02:08]} Qh5 {[%emt 0:00:31] Black took control after the opening.   Weighted Error Value: White=0.90/Black=0.04 (flawless) .  Mistake:       	White=4     	---        Inaccurate:     	White=4     	Black=1      OK:         	White=4     	Black=12} 0-1

[Event "XVI Memorial Lezcano Montalvo 2024"]
[Site "Gran Canaria"]
[Date "2024.03.23"]
[Round "1.5"]
[White "Strikovic, Aleksa"]
[Black "Rossello Padron, Carlos"]
[Result "1-0"]
[ECO "A34"]
[WhiteElo "2430"]
[BlackElo "1792"]
[Annotator "TA"]
[PlyCount "105"]
[EventDate "2024.03.23"]
[EventType "swiss"]
[EventCountry "ESP"]
[SourceTitle "playchess.com"]
[Source "ChessBase"]
[SourceQuality "1"]
[TimeControl "5400+30"]

{[%evp 18,105,45,27,113,105,185,187,160,103,97,109,108,110,116,108,120,116,114,118,122,118,120,121,117,120,120,119,111,110,110,110,116,110,122,121,120,119,121,122,245,243,245,166,247,247,256,245,302,264,382,387,396,394,389,365,389,555,568,561,555,515,535,535,811,795,1599,1597,1610,1479,1305,1172,1029,766,1300,1201,29978,29976,29976,29977,29979,29980,29980,29981,29983,29984,29984,29985,29986,0]} 1. c4 {[%emt 0:00:05]} Nf6 {[%emt 0:00:20]} 2. Nc3 {[%emt 0:00:06]} d5 {[%emt 0:00:39]} 3. cxd5 {[%emt 0:00:06]} Nxd5 {[%emt 0:00:08]} 4. g3 {[%emt 0:00:11]} c5 {[%emt 0:00:52]} 5. Bg2 {[%emt 0:00:18]} e6 {[%emt 0:00:27]} 6. Nf3 {[%emt 0:02:01]} Nc6 {[%emt 0:00:55]} 7. O-O {[%emt 0:00:10]} Be7 {[%emt 0:00:44]} 8. d4 {[%emt 0:00:08]} Nxc3 {[%emt 0:00:34]} 9. bxc3 {[%emt 0:00:06]} O-O {[%emt 0:00:11]} 10. Rb1 {[%emt 0:01:18]} Bf6 {[%emt 0:02:05]} (10... Qa5 $11) 11. Ba3 $16 {[%emt 0:01:30][%cal Bc1a3,Ba3c5,Bc5b4,Bb4e7][%mdl 32]} Qa5 {[%emt 0:04:20]} (11... Qd7 $16) 12. Bxc5 $18 {[%emt 0:00:25]} Rd8 {[%emt 0:00:08] Weiß steht deutlich besser.} 13. Qb3 {[%emt 0:00:19]} (13. Nd2 $142) 13... e5 $16 {[%emt 0:01:24]} 14. Bb4 {[%emt 0:03:23]} Qa6 {[%emt 0:03:25]} 15. dxe5 {[%emt 0:02:09]} Nxe5 {[%emt 0:02:05]} 16. Nxe5 {[%emt 0:00:06]} Bxe5 {[%emt 0:00:10]} 17. c4 {[%emt 0:00:34]} Be6 {[%emt 0:00:34]} 18. Be7 {[%emt 0:02:35][%csl LRb7,LRd8]} Rd7 {[%emt 0:11:53]} 19. Bxb7 {[%emt 0:00:40]} Bxc4 {[%emt 0:01:48]} 20. Qb4 {[%emt 0:11:00]} Bc3 {[%emt 0:00:19]} 21. Qxc3 {[%emt 0:00:09]} Rxb7 {[%emt 0:00:17]} 22. Rxb7 $40 {[%emt 0:00:06][%mdl 128] Weiss riecht Blut.} Qxb7 {[%emt 0:00:14]} 23. Qxc4 {[%emt 0:00:46]} Qxe7 {[%emt 0:00:24][%mdl 4096] Endspiel. KQR-KQR} 24. Rd1 {[%emt 0:00:09]} Re8 {[%emt 0:02:00]} 25. Rd4 {[%emt 0:01:13]} h6 {[%emt 0:02:59]} 26. e3 {[%emt 0:00:09]} Rd8 {[%emt 0:03:40]} 27. Qc6 {[%emt 0:06:28]} a5 {[%emt 0:05:55]} 28. Re4 {[%emt 0:01:36] Weiß steht aktiver.} Qd7 {[%emt 0:01:20] Führt Schwarz ins Verderben.} (28... Qa3 $16) 29. Qxd7 $18 {[%emt 0:00:35]} Rxd7 {[%emt 0:00:11] KR-KR} 30. Re8+ {[%emt 0:00:04]} Kh7 {[%emt 0:00:12]} 31. Re5 {[%emt 0:00:02]} Ra7 {[%emt 0:00:22]} 32. a4 {[%emt 0:00:04]} f6 {[%emt 0:01:12]} 33. Rb5 {[%emt 0:00:08]} Kg6 {[%emt 0:01:01]} (33... g5 $142 34. Kg2 Kg6) 34. g4 {[%emt 0:00:10]} Kf7 {[%emt 0:00:12]} 35. Kg2 {[%emt 0:00:10]} Ke6 {[%emt 0:03:11]} 36. h4 {[%emt 0:00:14]} g5 {[%emt 0:02:55]} 37. h5 {[%emt 0:00:11]} (37. Kg3 $142) 37... Kf7 {[%emt 0:00:32]} 38. Kf3 {[%emt 0:00:05]} Ke6 {[%emt 0:01:53]} 39. Ke4 {[%emt 0:01:29]} Ra6 {[%emt 0:00:42]} 40. f3 {[%emt 0:00:05]} Ra7 {[%emt 0:01:39]} 41. Rb6+ {[%emt 0:00:08]} Ke7 {[%emt 0:00:25]} 42. Kf5 {[%emt 0:00:07]} Kf7 {[%emt 0:01:22]} 43. Rxf6+ {[%emt 0:00:17]} Kg7 {[%emt 0:00:07]} 44. Rg6+ {[%emt 0:01:35]} Kh7 {[%emt 0:00:08]} 45. f4 {[%emt 0:00:17]} gxf4 {[%emt 0:00:25]} 46. exf4 {[%emt 0:00:05][%cal Be3f4,Bf4g5,Bg5g6][%mdl 32] [#] Weiss droht g5 und Matt.} Ra8 {[%emt 0:04:27]} 47. Re6 {[%emt 0:00:09] Weiß setzt Matt.} Rf8+ {[%emt 0:01:51]} 48. Ke5 {[%emt 0:00:50]} Rc8 {[%emt 0:01:26]} 49. g5 {[%emt 0:00:56]} hxg5 {[%emt 0:00:22]} 50. fxg5 {[%emt 0:00:05]} Rc4 {[%emt 0:02:53]} 51. Re7+ {[%emt 0:00:12]} Kg8 {[%emt 0:00:26]} 52. g6 {[%emt 0:00:24]} Rc5+ {[%emt 0:00:20]} 53. Ke4 $2 {[%emt 1:10:52][%mdl 32768] Gewichteter Fehlerwert: Weiß=0.05 (makellos) /Schwarz=0.40.  Fehler:       	Weiß=2     	Schwarz=3     Ungenau:       	---       	Schwarz=3     OK:         	Weiß=17    	Schwarz=9     Bester:       	Weiß=5     	Schwarz=1    . Fehler vom Sensorbrett (Ke4/e5)?} (53. Kf6 {setzt Matt} Rc6+ 54. Kg5 Rc5+ 55. Kh6 Rc8 56. Rg7+ Kh8 57. Ra7 Kg8 58. Rxa5) 1-0

[Event "XVI Memorial Lezcano Montalvo 2024"]
[Site "Gran Canaria"]
[Date "2024.03.23"]
[Round "1.6"]
[White "Guerra Aleman, Marcial"]
[Black "Yankelevich, Lev"]
[Result "0-1"]
[ECO "E60"]
[WhiteElo "1788"]
[BlackElo "2412"]
[Annotator "TA"]
[PlyCount "48"]
[EventDate "2024.03.23"]
[EventType "swiss"]
[EventCountry "ESP"]
[SourceTitle "playchess.com"]
[Source "ChessBase"]
[SourceQuality "1"]
[TimeControl "5400+30"]

{[%evp 11,48,13,48,26,42,0,5,4,15,10,46,1,11,-12,0,-27,-22,-27,-39,-43,-45,-43,-16,-18,0,-3,-10,-34,-20,-112,-93,-269,-259,-268,-260,-320,-310,-316,-275]} 1. d4 {[%emt 0:00:08]} Nf6 {[%emt 0:00:06]} 2. Nf3 {[%emt 0:00:35]} g6 {[%emt 0:00:42]} 3. g3 {[%emt 0:00:26]} Bg7 {[%emt 0:00:15]} 4. Bg2 {[%emt 0:00:12]} O-O {[%emt 0:00:12]} 5. O-O {[%emt 0:00:06]} d6 {[%emt 0:00:03]} 6. c4 {[%emt 0:00:53]} Bf5 {[%emt 0:00:50]} 7. Nh4 {[%emt 0:03:54] [#] Strongly threatening Nxf5.} Be4 {[%emt 0:00:07]} 8. Nc3 {[%emt 0:00:27]} Bxg2 {[%emt 0:00:38]} 9. Nxg2 {[%emt 0:00:09] The position is equal.} Qc8 {[%emt 0:10:02]} 10. e4 {[%emt 0:02:58]} e5 {[%emt 0:04:15]} 11. dxe5 {[%emt 0:05:34]} dxe5 {[%emt 0:00:08]} 12. Nd5 {[%emt 0:00:07]} Nc6 {[%emt 0:02:21] Prevents Ne7+} 13. Nxf6+ {[%emt 1:21:31]} Bxf6 {[%emt 0:00:10]} 14. Qf3 {[%emt 0:00:00]} Qe6 {[%emt 0:01:00][%cal Oc6d4]} 15. Ne3 {[%emt 0:00:00]} Nd4 {[%emt 0:04:43]} 16. Qg4 {[%emt 0:00:00]} Bg7 {[%emt 0:12:20]} 17. Qxe6 {[%emt 0:00:00]} fxe6 {[%emt 0:05:04]} 18. c5 {[%emt 0:00:00]} b5 {[%emt 0:06:59]} 19. cxb6 {[%emt 0:00:00]} axb6 {[%emt 0:00:07]} 20. a4 {[%emt 0:00:00]} (20. b4 $1 $11 {keeps the balance.}) 20... b5 $17 {[%emt 0:03:55] Black is much more active.} 21. b3 $2 {[%emt 0:00:00] [#] This move loses the game for White.} Nxb3 $19 {[%emt 0:00:23] Black has a decisive advantage.} 22. Rb1 {[%emt 0:00:00]} bxa4 {[%emt 0:00:10]} 23. Rd1 {[%emt 0:00:00]} Rfd8 {[%emt 0:01:31]} 24. Ba3 {[%emt 0:00:00]} Rd4 {[%emt 0:46:29] Weighted Error Value: White=0.37/Black=0.09 (flawless) .  Loses game:     	White=1     	---        Mistake:       	White=1     	---        Inaccurate:     	White=3     	Black=2      OK:         	White=2     	Black=10     Best:        	White=1     	---} 0-1

[Event "XVI Memorial Lezcano Montalvo 2024"]
[Site "Gran Canaria"]
[Date "2024.03.23"]
[Round "1.7"]
[White "Fiorito, Joaquin"]
[Black "Cabrera Ramos, Javier"]
[Result "1-0"]
[ECO "D85"]
[WhiteElo "2409"]
[BlackElo "1784"]
[Annotator "TA"]
[PlyCount "63"]
[EventDate "2024.03.23"]
[EventType "swiss"]
[EventCountry "ESP"]
[SourceTitle "playchess.com"]
[Source "ChessBase"]
[SourceQuality "1"]
[TimeControl "5400+30"]

{[%evp 16,63,40,25,75,38,30,27,27,29,31,33,111,119,140,101,227,223,821,341,316,225,239,230,531,524,528,520,517,499,483,444,633,668,636,604,665,670,639,675,670,671,1131,1095,29985,29986,29986,29984,29992,29993]} 1. d4 {[%emt 0:00:04]} Nf6 {[%emt 0:00:12]} 2. c4 {[%emt 0:00:08]} g6 {[%emt 0:00:09]} 3. Nc3 {[%emt 0:00:04]} d5 {[%emt 0:00:18]} 4. Nf3 {[%emt 0:00:09]} Bg7 {[%emt 0:00:15]} 5. cxd5 {[%emt 0:00:23]} Nxd5 {[%emt 0:00:16]} 6. e4 {[%emt 0:00:05]} Nxc3 {[%emt 0:00:09]} 7. bxc3 {[%emt 0:00:04]} c5 {[%emt 0:00:11]} 8. Bb5+ {[%emt 0:00:03]} Bd7 {[%emt 0:00:50]} 9. Rb1 {[%emt 0:00:04]} a6 {[%emt 0:10:39]} (9... Bxb5 $11 10. Rxb5 b6) 10. Bxd7+ {[%emt 0:01:38]} Qxd7 {[%emt 0:00:12]} 11. O-O {[%emt 0:00:21]} b5 {[%emt 0:00:23] White has an edge.} 12. Be3 {[%emt 0:02:23]} O-O {[%emt 0:03:38]} 13. d5 {[%emt 0:03:57]} ({Don't play} 13. dxc5 $6 Rc8 14. Qd5 Qxd5 15. exd5 Nd7 $18) 13... f5 {[%emt 0:07:17]} (13... Qd6 $14) 14. e5 $16 {[%emt 0:01:01]} ({Reject} 14. Bxc5 $6 fxe4 15. Ng5 Rf5 16. Nxe4 Rxd5 $14) 14... Qc7 {[%emt 0:02:23][%cal Ob8d7]} 15. Bf4 {[%emt 0:01:30]} Rd8 {[%emt 0:00:53] Black cannot hold the game after this.} (15... Nd7 $16 {was worth a try.}) 16. Ng5 $18 {[%emt 0:02:59]} Qa5 $2 {[%emt 0:00:15] [#]} (16... Qc8 17. Ne6 Nc6 18. Nxd8 (18. Nxc5 Nxe5 19. Ne6 Qc4 $16) 18... Nxd8) 17. Ne6 {[%emt 0:01:58]} (17. d6 $142 {Qd5+ would kill now.} Qxa2 18. Rb3 (18. dxe7 Re8 $18)) 17... Nd7 {[%emt 0:00:19]} 18. Nxd8 {[%emt 0:00:21]} Rxd8 {[%emt 0:00:02]} 19. c4 {[%emt 0:02:43]} Nb6 $2 {[%emt 0:02:40]} (19... Nxe5 20. Qe2 Qc3) 20. d6 {[%emt 0:01:13]} e6 {[%emt 0:05:46]} 21. Bg5 {[%emt 0:01:13]} Nxc4 {[%emt 0:00:44]} 22. Bxd8 {[%emt 0:00:10]} Qxd8 {[%emt 0:00:11]} 23. f4 {[%emt 0:00:16] [#] Strongly threatening a4.} Ne3 {[%emt 0:03:42]} (23... g5 $142 24. g3 gxf4 25. gxf4 Na5) 24. Qb3 {[%emt 0:02:14][%csl LRe3,LRe6]} Nd5 {[%emt 0:00:03]} 25. Qf3 {[%emt 0:01:01]} g5 {[%emt 0:01:34][%cal Bg6g5,Bg5g4][%mdl 32]} 26. Rbd1 {[%emt 0:01:24] aiming for Rxd5.} Nxf4 {[%emt 0:00:34]} 27. Qc6 {[%emt 0:01:48][%csl LRa6,LRc5]} Bxe5 {[%emt 0:06:37]} 28. Qxc5 {[%emt 0:00:46]} Ng6 {[%emt 0:05:03]} 29. Rfe1 {[%emt 0:00:20]} Bxh2+ {[%emt 0:01:43]} 30. Kxh2 {[%emt 0:00:10] White mates.} g4 {[%emt 0:00:02]} 31. d7 {[%emt 0:00:20]} Nf4 {[%emt 0:00:46]} 32. Qc8 {[%emt 1:15:40] Weighted Error Value: White=0.28 (precise) /Black=0.71.  Mistake:       	White=1     	Black=5      Inaccurate:     	White=1     	---        OK:         	White=8     	Black=6} 1-0